fUSD/lending_fUSD_20251129
["ID","MTS","AMOUNT","RATE_DAILY","PERIOD"]
[395122059,1764457092005,-300.0,0.00014647,2]
[395122060,1764457092032,-147.30559087,0.00014647,2]
[395122061,1764457095301,-2.69440913,0.00014647,2]
[395122062,1764457095324,-603.51999767,0.00014647,2]
[395122063,1764457097282,-199.99999983,0.00014647,2]
[395122064,1764457102495,-300.0,0.00014647,2]
[395122065,1764457104662,-96.4800025,0.00014647,2]
[395122066,1764457104685,-251.78751428,0.00014647,2]
[395122067,1764457106825,-48.21248572,0.00014647,2]
[395122068,1764457106856,-159.84893933,0.00014648,2]
[395122070,1764457108263,150.86199939,0.00014547,2]
[395122072,1764457109428,-179.94534028,0.00014648,2]
[395122073,1764457109460,-59.75749607,0.00014648,2]
[395122074,1764457112524,-500.0,0.00014648,2]
[395122075,1764457118158,-150.86199938,0.00014627,2]
[395122076,1764457118181,-42.77794844,0.00014649,2]
[395122077,1764457120043,-216.15850469,0.00014649,2]
[395122078,1764457121984,-15.18865431,0.00014649,2]
[395122079,1764457122005,-266.23883917,0.00014649,2]
[395122080,1764457126113,-332.32122613,0.00014649,2]
[395122081,1764457126137,-167.67877387,0.00014649,2]
[395122083,1764457131615,-136.03503819,0.00014649,2]
[395122084,1764457131641,-59.0085089,0.00014649,2]
[395122085,1764457135539,-272.48669872,0.00014649,2]
[395122086,1764457138645,-168.50479238,0.00014649,2]
[395122087,1764457138675,-276.56422616,0.00014649,2]
[395122088,1764457141601,-223.43577384,0.00014649,2]
[395122089,1764457141628,-252.19433543,0.00014649,2]
[395122090,1764457143742,-300.0,0.00014648,2]
[395122091,1764457143769,-171.43794341,0.00014649,2]
[395122092,1764457145908,-195.0,0.00014649,2]
[395122093,1764457145939,-76.36772116,0.00014649,2]
[395122094,1764457145962,-200.07022225,0.00014649,2]
[395122095,1764457149105,-299.92977775,0.00014649,2]
[395122096,1764457149134,-131.05047665,0.00014649,2]
[395122097,1764457151318,-325.96826623,0.00014649,2]
[395122099,1764457154013,-42.98125712,0.00014649,2]
[395122100,1764457154035,-271.16372545,0.00014649,2]
[395122101,1764457157303,-195.0,0.00014649,2]
[395122102,1764457161374,-33.83627455,0.00014649,2]
[395122103,1764457161402,-308.49712129,0.00014649,2]
[395122104,1764457165600,-191.50287871,0.00014649,2]
[395122105,1764457165622,-8.49712129,0.00014649,2]
[395122106,1764457169201,-170.98246701,0.00014649,2]
[395122107,1764457169236,-85.47563384,0.00014649,2]
[395122108,1764457172692,-208.58793262,0.00014649,2]
[395122110,1764457176440,-205.93643354,0.00014649,2]
[395122111,1764457176466,-160.22110978,0.00014649,2]
[395122112,1764457179163,-300.0,0.00014649,2]
[395122113,1764457180934,-500.0,0.00014635,2]
[395122114,1764457183891,-179.50081846,0.00014635,2]
[395122115,1764457186105,-583.38067067,0.00014635,2]
[395122116,1764457189023,-68.95424003,0.00014635,2]
[395122117,1764457189049,-39.77889022,0.00014649,2]
[395122118,1764457189074,-63.74432068,0.00014649,2]
[395122119,1764457192819,-286.60738451,0.00014649,2]
[395122121,1764457197558,-149.64829481,0.00014649,2]
[395122122,1764457197585,-148.69953206,0.00014649,2]
[395122123,1764457200354,-299.07285986,0.00014649,2]
[395122124,1764457203618,-187.45353053,0.00014648,2]
[395122125,1764457207536,-112.54646947,0.00014648,2]
[395122126,1764457207560,-387.45353053,0.00014648,2]
[395122127,1764457209594,-189.92552771,0.00014648,2]
[395122128,1764457213432,-268.72515562,0.0001464,2]
[395122129,1764457216340,-268.72515562,0.0001464,2]
[395122131,1764457220470,-500.0,0.0001464,2]
[395122132,1764457223857,-215.49625405,0.00014648,2]
[395122133,1764457225946,-300.0,0.00014648,2]
[395122134,1764457229498,-107.12468771,0.00014648,2]
[395122135,1764457229521,-44.88265832,0.00014648,2]
[395122136,1764457231232,-105.11734168,0.00014648,2]
[395122137,1764457231260,-52.22760808,0.00014649,2]
[395122138,1764457231287,-81.36748793,0.00014649,2]
[395122139,1764457235117,-418.63251207,0.00014649,2]
[395122140,1764457235144,-81.36748793,0.00014649,2]
[395122141,1764457238170,-256.41102697,0.00014649,2]
[395122142,1764457240009,-156.39171891,0.00014649,2]
[395122144,1764457243025,-5.82976619,0.00014649,2]
[395122145,1764457243053,-237.75920684,0.00014649,2]
[395122146,1764457246067,-262.24079316,0.00014649,2]
[395122147,1764457246094,-37.75920684,0.00014649,2]
[395122153,1764457294076,2500.0,0.0001455,2]
[395122163,1764457422022,1098.49163183,0.00014551,2]
[395122164,1764457437085,4452.8042905,0.00014551,2]
[395122165,1764457449935,399.33207828,0.00013699,2]
[395122166,1764457449962,234.50792172,0.00013699,2]
[395122167,1764457455791,647.08794537,0.00014549,2]
[395122168,1764457456690,4582.6323,0.0001455,2]
[395122190,1764457761918,4535.78183291,0.0001455,2]
[395122191,1764457761944,10000.01,0.0001455,2]
[395122192,1764457761970,10000.01,0.0001455,2]
[395122193,1764457761997,10000.01,0.0001455,2]
[395122194,1764457762024,10000.01,0.0001455,2]
[395122195,1764457762050,10000.01,0.0001455,2]
[395122196,1764457762075,10000.01,0.0001455,2]
[395122197,1764457762102,10000.01,0.0001455,2]
[395122198,1764457762128,10000.01,0.0001455,2]
[395122199,1764457762154,10000.01,0.0001455,2]
[395122230,1764457769864,-168.7131197,0.0001455,2]
[395122231,1764457770054,-9686.3,0.0001455,2]
[395122232,1764457770169,-10000.01,0.0001455,2]
[395122233,1764457770295,-10000.01,0.0001455,2]
[395122234,1764457770417,-10000.01,0.0001455,2]
[395122235,1764457772763,-10000.01,0.0001455,2]
[395122236,1764457773164,-10000.01,0.0001455,2]
[395122237,1764457773293,-10000.01,0.0001455,2]
[395122238,1764457773413,-10000.01,0.0001455,2]
[395122239,1764457773537,-10000.01,0.0001455,2]
[395122240,1764457773664,-10000.01,0.0001455,2]
[395122241,1764457775951,-10000.01,0.0001455,2]
[395122242,1764457776069,-10000.01,0.0001455,2]
[395122243,1764457776207,-10000.01,0.0001455,2]
[395122244,1764457776315,-10000.01,0.0001455,2]
[395122245,1764457778950,-10000.01,0.0001455,2]
[395122246,1764457782055,-10000.01,0.0001455,2]
[395122247,1764457782177,-10000.01,0.0001455,2]
[395122248,1764457782295,-10000.01,0.0001455,2]
[395122249,1764457782472,-10000.01,0.0001455,2]
[395122250,1764457785055,-10000.01,0.0001455,2]
[395122251,1764457788670,-10000.01,0.0001455,2]
[395122252,1764457788968,-10000.01,0.0001455,2]
[395122253,1764457789101,-10000.01,0.0001455,2]
[395122254,1764457791908,-10000.01,0.0001455,2]
[395122255,1764457795074,-10000.01,0.0001455,2]
[395122256,1764457795432,-10000.01,0.0001455,2]
[395122257,1764457795561,-10000.01,0.0001455,2]
[395122269,1764457832465,-1200.0,0.00014549,2]
[395122270,1764457832475,-300.0,0.00014549,2]
[395122271,1764457832484,-208.0,0.0001455,2]
[395122272,1764457832493,-2955.8937,0.0001455,2]
[395122305,1764457838540,-500.0,0.00014549,2]
[395122306,1764457838550,-167.01334999,0.00014549,2]
[395122307,1764457838559,-170.07688478,0.00014549,2]
[395122308,1764457838568,-239.83542647,0.00014549,2]
[395122309,1764457838578,-544.77027098,0.00014549,2]
[395122310,1764457838587,-500.0,0.00014549,2]
[395122311,1764457838596,-500.0,0.00014549,2]
[395122312,1764457838606,-500.0,0.00014549,2]
[395122313,1764457838615,-500.0,0.00014549,2]
[395122314,1764457838624,-500.0,0.00014549,2]
[395122315,1764457838634,-500.0,0.00014549,2]
[395122316,1764457838643,-500.0,0.00014549,2]
[395122317,1764457838652,-500.0,0.00014549,2]
[395122318,1764457838662,-500.0,0.00014549,2]
[395122319,1764457838671,-500.0,0.00014549,2]
[395122320,1764457838681,-500.0,0.00014549,2]
[395122321,1764457838690,-500.0,0.00014549,2]
[395122322,1764457838699,-500.0,0.00014549,2]
[395122323,1764457838708,-500.0,0.00014549,2]
[395122325,1764457838718,-500.0,0.00014549,2]
[395122327,1764457838727,-500.0,0.00014549,2]
[395122329,1764457838736,-500.0,0.00014549,2]
[395122331,1764457838746,-500.0,0.00014549,2]
[395122333,1764457838755,-500.0,0.00014549,2]
[395122335,1764457838764,-500.0,0.00014549,2]
[395122337,1764457838773,-500.0,0.00014549,2]
[395122339,1764457838782,-500.0,0.00014549,2]
[395122340,1764457838792,-500.0,0.00014549,2]
[395122343,1764457838802,-500.0,0.00014549,2]
[395122345,1764457838811,-500.0,0.00014549,2]
[395122347,1764457838819,-500.0,0.00014549,2]
[395122348,1764457838828,-500.0,0.00014549,2]
[395122350,1764457838838,-500.0,0.00014549,2]
[395122353,1764457838848,-500.0,0.00014549,2]
[395122354,1764457838857,-500.0,0.00014549,2]
[395122357,1764457838866,-500.0,0.00014549,2]
[395122359,1764457838876,-500.0,0.00014549,2]
[395122361,1764457838886,-500.0,0.00014549,2]
[395122363,1764457838895,-500.0,0.00014549,2]
[395122365,1764457838905,-466.11800957,0.00014549,2]
[395122367,1764457838914,-500.0,0.00014549,2]
[395122368,1764457838923,-500.0,0.00014549,2]
[395122371,1764457838934,-500.0,0.00014549,2]
[395122372,1764457838943,-214384.82814431,0.0001455,2]
[395122376,1764457838963,-8742.24270308,0.0001455,2]
[395122378,1764457838973,-500.0,0.00014641,2]
[395122380,1764457838983,-200.0,0.00014641,2]
[395122416,1764457839318,-151.0,0.00014641,2]
[395122421,1764457839356,-151.0,0.00014641,2]
[395122423,1764457839365,-151.0,0.00014641,2]
[395122425,1764457839374,-156.49532354,0.00014641,2]
[395122427,1764457839383,-1200.0,0.00014647,2]
[395122429,1764457839392,-209.3641883,0.00014648,2]
[395122431,1764457839401,-150.0,0.00014648,2]
[395122433,1764457839410,-259.16430715,0.00014649,2]
[395122435,1764457839419,-16943.10490576,0.00014649,2]
[395122437,1764457839428,-642.78,0.00014649,2]
[395122439,1764457839438,-269.22564842,0.00014649,2]
[395122441,1764457839447,-547.75274217,0.00014649,2]
[395122443,1764457839456,-500.0,0.00014807,2]
[395122445,1764457839465,-500.0,0.00014807,2]
[395122447,1764457839475,-500.0,0.00014807,2]
[395122449,1764457839484,-500.0,0.00014807,2]
[395122451,1764457839493,-642.78,0.00014923,2]
[395122453,1764457839502,-600.93959417,0.00015193,2]
[395122455,1764457839511,-642.78,0.00015197,2]
[395122457,1764457839520,-642.78,0.00015471,2]
[395122459,1764457839529,-642.78,0.00015745,2]
[395122461,1764457839539,-9999.99,0.00015776,2]
[395122463,1764457839548,-255.0,0.00015776,2]
[395122465,1764457839557,-150.99,0.000159,2]
[395122467,1764457839566,-999.99,0.000159,2]
[395122469,1764457839575,-560.60948145,0.000159,2]
[395122471,1764457839584,-560.6094814,0.000159,2]
[395122473,1764457839594,-560.6094814,0.000159,2]
[395122475,1764457839603,-420.0,0.00015931,2]
[395122477,1764457839612,-500.0,0.00015973,2]
[395122479,1764457839621,-500.0,0.00015973,2]
[395122481,1764457839629,-500.71814226,0.00015973,2]
[395122483,1764457839638,-500.0,0.00015973,2]
[395122486,1764457839649,-500.0,0.00015973,2]
[395122488,1764457839658,-500.0,0.00015973,2]
[395122489,1764457839667,-500.0,0.00015973,2]
[395122491,1764457839676,-500.0,0.00015973,2]
[395122494,1764457839686,-500.0,0.00015973,2]
[395122495,1764457839696,-500.0,0.00015973,2]
[395122498,1764457839706,-500.0,0.00015973,2]
[395122500,1764457839717,-500.0,0.00015973,2]
[395122501,1764457839727,-500.33790784,0.00015973,2]
[395122504,1764457839738,-500.0,0.00015973,2]
[395122506,1764457839747,-501.65327585,0.00015973,2]
[395122507,1764457839756,-500.0,0.00015973,2]
[395122510,1764457839767,-250.0,0.00015994,2]
[395122512,1764457839777,-300.0,0.00015994,2]
[395122513,1764457839786,-1680.0,0.00016004,2]
[395122515,1764457839797,-642.83,0.00016019,2]
[395122517,1764457839806,-968.22,0.00016039,2]
[395122519,1764457839816,-195.0,0.00016113,2]
[395122521,1764457839825,-924.5,0.00016208,2]
[395122522,1764457839834,-1000.0,0.00016286,2]
[395122523,1764457839843,-302.17,0.00016286,2]
[395122524,1764457839852,-2000.0,0.00016286,2]
[395122525,1764457839861,-5854.32,0.00016417,2]
[395122526,1764457839870,-500.0,0.00016438,2]
[395122527,1764457839879,-500.0,0.00016438,2]
[395122528,1764457839888,-500.0,0.00016438,2]
[395122529,1764457839897,-500.0,0.00016438,2]
[395122530,1764457839906,-192.96332535,0.00016438,2]
[395122531,1764457839916,-452.21585205,0.00016438,2]
[395122532,1764457839925,-1000.0,0.00016521,2]
[395122533,1764457839934,-184.79730938,0.00016521,2]
[395122534,1764457839942,-1000.0,0.00016521,2]
[395122535,1764457839951,-1017.62515895,0.00016521,2]
[395122536,1764457839960,-500.0,0.00016521,2]
[395122537,1764457839969,-1000.0,0.00016521,2]
[395122538,1764457839978,-500.0,0.00016521,2]
[395122539,1764457839986,-1000.0,0.00016521,2]
[395122540,1764457839995,-1000.0,0.00016521,2]
[395122542,1764457840005,-1000.0,0.00016521,2]
[395122544,1764457840014,-1000.0,0.00016521,2]
[395122546,1764457840025,-509.84757523,0.00016521,2]
[395122548,1764457840035,-360.05947122,0.00016521,2]
[395122550,1764457840044,-427.45964135,0.0001669,2]
[395122552,1764457840058,-200.0,0.00016864,2]
[395122554,1764457840067,-988.64246862,0.00016873,2]
[395122556,1764457840077,-1415.0,0.00016894,2]
[395122558,1764457840086,-500.0,0.00016973,2]
[395122560,1764457840098,-500.0,0.00016973,2]
[395122562,1764457840107,-500.0,0.00016973,2]
[395122564,1764457840116,-500.0,0.00016973,2]
[395122567,1764457840128,-500.0,0.00016973,2]
[395122570,1764457840137,-500.0,0.00016973,2]
[395122573,1764457840146,-500.0,0.00016973,2]
[395122576,1764457840156,-231.63969334,0.00016973,2]
[395122578,1764457840165,-500.0,0.00016973,2]
[395122580,1764457840174,-500.0,0.00016973,2]
[395122584,1764457840184,-500.0,0.00016973,2]
[395122586,1764457840193,-165.98212225,0.00016973,2]
[395122588,1764457840203,-186.88026511,0.00016973,2]
[395122590,1764457840213,-500.0,0.00016973,2]
[395122592,1764457840224,-500.0,0.00016973,2]
[395122594,1764457840234,-338.57088426,0.00016973,2]
[395122596,1764457840244,-500.0,0.00016973,2]
[395122599,1764457840254,-500.0,0.00016973,2]
[395122601,1764457840263,-500.0,0.00016973,2]
[395122603,1764457840272,-500.0,0.00016973,2]
[395122605,1764457840282,-500.0,0.00016973,2]
[395122608,1764457840291,-500.0,0.00016973,2]
[395122609,1764457840302,-500.0,0.00016973,2]
[395122611,1764457840311,-500.0,0.00016973,2]
[395122613,1764457840320,-500.0,0.00016973,2]
[395122615,1764457840329,-500.0,0.00016973,2]
[395122617,1764457840339,-500.0,0.00016973,2]
[395122619,1764457840349,-500.0,0.00016973,2]
[395122621,1764457840359,-500.0,0.00016973,2]
[395122625,1764457840368,-500.0,0.00016973,2]
[395122627,1764457840378,-500.0,0.00016973,2]
[395122629,1764457840388,-433.0,0.00016992,2]
[395122631,1764457840398,-1500.0,0.00017068,2]
[395122633,1764457840407,-1500.0,0.00017068,2]
[395122635,1764457840416,-1500.0,0.00017068,2]
[395122637,1764457840425,-1500.0,0.00017068,2]
[395122639,1764457840434,-1500.0,0.00017068,2]
[395122641,1764457840444,-1500.0,0.00017068,2]
[395122643,1764457840453,-1500.0,0.00017068,2]
[395122645,1764457840463,-537.0,0.00017443,2]
[395122647,1764457840472,-1000.0,0.00017521,2]
[395122649,1764457840481,-1000.0,0.00017521,2]
[395122651,1764457840491,-1000.0,0.00017521,2]
[395122653,1764457840500,-1000.0,0.00017521,2]
[395122655,1764457840509,-1000.0,0.00017521,2]
[395122657,1764457840519,-539.82653192,0.00017521,2]
[395122659,1764457840528,-1000.0,0.00017521,2]
[395122661,1764457840538,-1000.0,0.00017521,2]
[395122663,1764457840547,-615.51796754,0.00017521,2]
[395122665,1764457840557,-268.93907095,0.00017521,2]
[395122667,1764457840566,-1000.0,0.00017521,2]
[395122669,1764457840575,-1000.0,0.00017521,2]
[395122671,1764457840585,-1000.0,0.00017521,2]
[395122673,1764457840596,-1000.0,0.00017521,2]
[395122675,1764457840606,-1000.0,0.00017521,2]
[395122677,1764457840615,-1000.0,0.00017521,2]
[395122679,1764457840624,-1000.0,0.00017521,2]
[395122681,1764457840633,-1000.0,0.00017521,2]
[395122682,1764457840642,-1000.0,0.00017521,2]
[395122684,1764457840652,-1000.0,0.00017521,2]
[395122686,1764457840661,-1000.0,0.00017521,2]
[395122688,1764457840670,-502.30829307,0.00017521,2]
[395122690,1764457840679,-1000.0,0.00017521,2]
[395122692,1764457840688,-885.2307226,0.00017521,2]
[395122694,1764457840698,-1000.0,0.00017521,2]
[395122696,1764457840707,-1000.0,0.00017521,2]
[395122698,1764457840716,-1795.0,0.00017604,2]
[395122700,1764457840725,-2000.0,0.00017616,2]
[395122702,1764457840734,-2000.0,0.00017616,2]
[395122704,1764457840744,-2000.0,0.00017616,2]
[395122706,1764457840753,-2000.0,0.00017616,2]
[395122708,1764457840762,-324.24405167,0.00017616,2]
[395122710,1764457840771,-543.587836,0.00017616,2]
[395122712,1764457840780,-2000.0,0.00017616,2]
[395122714,1764457840789,-1415.0,0.00017749,2]
[395122716,1764457840798,-1415.0,0.00017969,2]
[395122718,1764457840807,-1415.0,0.00018063,2]
[395122720,1764457840816,-1500.0,0.00018068,2]
[395122722,1764457840825,-1500.0,0.00018068,2]
[395122724,1764457840835,-1500.0,0.00018068,2]
[395122726,1764457840844,-1500.0,0.00018068,2]
[395122728,1764457840853,-819.21380805,0.00018068,2]
[395122730,1764457840862,-1500.0,0.00018068,2]
[395122732,1764457840872,-1500.0,0.00018068,2]
[395122734,1764457840881,-830.57081561,0.00018068,2]
[395122736,1764457840891,-1615.0167694,0.00018068,2]
[395122738,1764457840901,-508.1346572,0.00018068,2]
[395122740,1764457840912,-577.96429951,0.00018068,2]
[395122742,1764457840921,-501.21506587,0.00018068,2]
[395122744,1764457840930,-862.64564803,0.00018068,2]
[395122746,1764457840939,-283.26620629,0.00018068,2]
[395122748,1764457840949,-1500.0,0.00018068,2]
[395122750,1764457840958,-1558.19890298,0.00018068,2]
[395122752,1764457840967,-1283.4470219,0.00018068,2]
[395122754,1764457840976,-1500.0,0.00018068,2]
[395122756,1764457840986,-1500.0,0.00018068,2]
[395122758,1764457840995,-1116.36173236,0.00018068,2]
[395122760,1764457841004,-1500.0,0.00018068,2]
[395122762,1764457841013,-182.95,0.00018111,2]
[395122764,1764457841023,-2500.0,0.00018164,2]
[395122766,1764457841031,-1462.99365393,0.00018164,2]
[395122768,1764457841041,-1507.25612712,0.00018164,2]
[395122770,1764457841053,-2500.0,0.00018164,2]
[395122772,1764457841063,-2500.0,0.00018164,2]
[395122774,1764457841073,-736.0,0.00018295,2]
[395122776,1764457841082,-1000.0,0.00018322,2]
[395122778,1764457841091,-34290.16,0.00018356,2]
[395122780,1764457841100,-1150.54892794,0.00018616,2]
[395122782,1764457841110,-167.97644675,0.00018616,2]
[395122784,1764457841119,-1380.42304806,0.00018616,2]
[395122786,1764457841128,-1512.60268871,0.00018616,2]
[395122788,1764457841137,-512.547964,0.00018616,2]
[395122790,1764457841147,-992.70829598,0.00018616,2]
[395122792,1764457841155,-2000.0,0.00018616,2]
[395122794,1764457841164,-383.56702396,0.00018616,2]
[395122796,1764457841174,-2000.0,0.00018616,2]
[395122798,1764457841183,-2000.0,0.00018616,2]
[395122800,1764457841192,-3000.0,0.00018712,2]
[395122802,1764457841201,-1634.06619687,0.00018712,2]
[395122804,1764457841211,-3000.0,0.00018712,2]
[395122806,1764457841220,-322.6107,0.00018828,2]
[395122808,1764457841229,-250.0,0.00018828,2]
[395122810,1764457841238,-267.46074303,0.00018828,2]
[395122812,1764457841247,-250.0,0.00018828,2]
[395122814,1764457841256,-250.0,0.00018828,2]
[395122816,1764457841265,-250.0,0.00018828,2]
[395122818,1764457841276,-5702.71425951,0.00018828,2]
[395122820,1764457841285,-250.0,0.00018828,2]
[395122822,1764457841294,-212.00770439,0.00018828,2]
[395122824,1764457841303,-1000.0,0.00018828,2]
[395122826,1764457841312,-151.0,0.00018828,2]
[395122828,1764457841322,-151.0,0.00018828,2]
[395122830,1764457841331,-151.0,0.00018828,2]
[395122832,1764457841340,-151.0,0.00018828,2]
[395122834,1764457841349,-300.0,0.00018828,2]
[395122836,1764457841358,-151.0,0.00018828,2]
[395122838,1764457841367,-151.0,0.00018828,2]
[395122840,1764457841377,-151.0,0.00018828,2]
[395122842,1764457841386,-151.0,0.00018828,2]
[395122844,1764457841395,-500.0,0.00018828,2]
[395122846,1764457841404,-151.0,0.00018828,2]
[395122848,1764457841413,-500.0,0.00018828,2]
[395122850,1764457841422,-151.0,0.00018828,2]
[395122852,1764457841431,-8000.0,0.00018828,2]
[395122854,1764457841440,-151.0,0.00018828,2]
[395122856,1764457841449,-8000.0,0.00018828,2]
[395122858,1764457841458,-151.0,0.00018828,2]
[395122860,1764457841467,-8000.0,0.00018828,2]
[395122862,1764457841476,-500.0,0.00018828,2]
[395122864,1764457841485,-500.0,0.00018828,2]
[395122866,1764457841494,-1000.0,0.00018828,2]
[395122868,1764457841503,-500.0,0.00018828,2]
[395122870,1764457841512,-1000.0,0.00018828,2]
[395122872,1764457841521,-1000.0,0.00018828,2]
[395122874,1764457841531,-1000.0,0.00018828,2]
[395122876,1764457841540,-1000.0,0.00018828,2]
[395122878,1764457841549,-1000.0,0.00018828,2]
[395122880,1764457841558,-1000.0,0.00018828,2]
[395122882,1764457841569,-659.83626151,0.00018828,2]
[395122884,1764457841579,-578.20924308,0.00018828,2]
[395122886,1764457841589,-250.0,0.00018828,2]
[395122888,1764457841598,-250.0,0.00018828,2]
[395122890,1764457841608,-250.0,0.00018828,2]
[395122892,1764457841617,-250.0,0.00018828,2]
[395122894,1764457841626,-250.0,0.00018828,2]
[395122896,1764457841634,-1000.0,0.00018828,2]
[395122898,1764457841643,-1000.0,0.00018828,2]
[395122900,1764457841652,-1000.0,0.00018828,2]
[395122902,1764457841662,-1000.0,0.00018828,2]
[395122904,1764457841672,-195.02807186,0.00018828,2]
[395122906,1764457841682,-610.14928927,0.00019,2]
[395122908,1764457841691,-57302.63,0.00019052,2]
[395122910,1764457841700,-200.0,0.00019082,2]
[395122912,1764457841709,-2177.37163808,0.00019164,2]
[395122914,1764457841718,-2500.0,0.00019164,2]
[395122916,1764457841728,-2500.0,0.00019164,2]
[395122918,1764457841737,-151.0,0.00019178,2]
[395122920,1764457841746,-157.0,0.00019178,2]
[395122922,1764457841755,-152.0,0.00019178,2]
[395122924,1764457841764,-152.0,0.00019178,2]
[395122926,1764457841773,-152.0,0.00019178,2]
[395122929,1764457841784,-152.0,0.00019178,2]
[395122930,1764457841794,-152.0,0.00019178,2]
[395122932,1764457841803,-152.0,0.00019178,2]
[395122934,1764457841812,-152.0,0.00019178,2]
[395122936,1764457841821,-152.0,0.00019178,2]
[395122938,1764457841830,-152.0,0.00019178,2]
[395122940,1764457841838,-152.0,0.00019178,2]
[395122942,1764457841848,-152.0,0.00019178,2]
[395122944,1764457841858,-152.0,0.00019178,2]
[395122946,1764457841867,-152.0,0.00019178,2]
[395122948,1764457841876,-152.0,0.00019178,2]
[395122950,1764457841886,-152.0,0.00019178,2]
[395122952,1764457841896,-151.0,0.00019178,2]
[395122955,1764457841906,-150.0,0.000192,7]
[395122957,1764457841916,-3802.92,0.0001925,2]
[395122959,1764457841925,-2000.0,0.0001926,2]
[395122961,1764457841935,-2000.0,0.0001926,2]
[395122963,1764457841944,-250.0,0.00019346,2]
[395122965,1764457841954,-156.68871822,0.00019369,2]
[395122967,1764457841963,-1000.0,0.00019376,2]
[395122969,1764457841972,-545.0,0.00019402,2]
[395122971,1764457841982,-988.64246857,0.00019543,2]
[395122973,1764457841991,-6904.12823386,0.00019691,2]
[395122975,1764457842001,-1252.0,0.00019702,2]
[395122977,1764457842010,-2500.0,0.00019712,2]
[395122979,1764457842020,-1884.52230467,0.00019712,2]
[395122981,1764457842029,-156.58700001,0.00019726,2]
[395122983,1764457842039,-210.12,0.00019731,2]
[395122985,1764457842051,-166.66,0.00019827,2]
[395122987,1764457842060,-1000.0,0.00019924,2]
[395122989,1764457842069,-1097.0,0.00020069,2]
[395122991,1764457842079,-633.84,0.00020187,2]
[395122993,1764457842091,-334.5472959,0.00020197,2]
[395122995,1764457842101,-277.35679052,0.00020197,2]
[395122997,1764457842110,-333.7107,0.00020197,2]
[395122999,1764457842121,-1603.0,0.00020319,2]
[395123001,1764457842132,-610.0,0.00020319,2]
[395123003,1764457842141,-3441.0,0.00020319,2]
[395123005,1764457842151,-1321.0,0.00020319,2]
[395123007,1764457842161,-1258.0,0.00020319,2]
[395123009,1764457842171,-640.0,0.00020319,2]
[395123011,1764457842180,-1193.0,0.00020319,2]
[395123013,1764457842194,-909.0,0.00020319,2]
[395123015,1764457842203,-562.0,0.00020319,2]
[395123017,1764457842212,-2718.0,0.00020319,2]
[395123019,1764457842221,-1000.0,0.00020358,2]
[395123021,1764457842230,-150.0,0.00020411,2]
[395123024,1764457842240,-1000.0,0.00020472,2]
[395123026,1764457842255,-166.66,0.00020482,2]
[395123027,1764457842264,-1000.0,0.0002102,2]
[395123030,1764457842274,-1097.0,0.00021126,2]
[395123032,1764457842283,-166.66,0.00021136,2]
[395123033,1764457842293,-697.0,0.00021225,2]
[395123035,1764457842302,-224.31484585,0.00021566,2]
[395123037,1764457842310,-287.61899177,0.00021566,2]
[395123039,1764457842320,-599.60298507,0.00021567,2]
[395123041,1764457842330,-1669.0710545,0.00021574,2]
[395123043,1764457842339,-166.66,0.00021791,2]
[395123045,1764457842349,-500.0,0.00021918,4]
[395123047,1764457842357,-500.0,0.00021918,4]
[395123049,1764457842369,-500.0,0.00021918,4]
[395123051,1764457842380,-500.0,0.00021918,4]
[395123053,1764457842389,-500.0,0.00021918,4]